Cogmind - Beta 13 @@@ ROGUE MODE // 2024.04.07 @ 03:30:44 Player: Luca Result: Self-destructed Performance ------------- Evolutions (1) 500 Regions Visited (2) 400 Robots Destroyed (15) 75 Value Destroyed (402) 402 Prototype IDs (3) 60 Alien Tech Used (0) 0 Bonus (0) 0 TOTAL SCORE: 1437 Bonus ------- None Cogmind --------- Core Integrity 250/400 Matter 218/300 Energy 100/100 System Corruption 0% Temperature Cool (0) Movement Flying (40) Location -9/Materials Parts ------- > --- POWER (1) -------- (None) > --- PROPULSION (2) --- Flight Unit > --- UTILITY (3) ------ Visual Processing Unit Targeting Computer > --- WEAPON (3) ------- (None) > --- INVENTORY (5) ---- Improved Heat Sink High-capacity Battery (250) Weight Redist. System Sensor Array Peak State ------------ > --- POWER ------------ Heavy Ion Engine > --- PROPULSION ------- Aluminum Leg Aluminum Leg > --- UTILITY ---------- Visual Processing Unit Targeting Computer > --- WEAPON ----------- Small Laser Light Assault Rifle Rocket Launcher > --- INVENTORY -------- Improved Heat Sink High-capacity Battery Weight Redist. System Sensor Array Light Assault Rifle [Rating: 12] Favorites ----------- Power Light Ion Engine Engine Light Ion Engine Power Core Light Nuclear Core Propulsion Aluminum Leg Leg Aluminum Leg Flight Unit Flight Unit Utility Visual Processing Unit Device Sensor Array Storage Medium Storage Unit Processor Visual Processing Unit Weapon Light Assault Rifle Energy Gun Small Laser Ballistic Gun Light Assault Rifle Launcher Rocket Launcher Build | -11 -10 -9 ------- Run | Yrd Mat Mat Slots Evolved 2 | . . 2 Power . | . . . Propulsion . | . . . Utility 1 | . . 1 Weapon 1 | . . 1 Parts Attached 36 | 7 23 6 Power 6 | 1 4 1 Engine 4 | 1 2 1 Core 2 | . 2 . Reactor . | . . . Propulsion 11 | 2 8 1 Treads . | . . . Leg 10 | 2 8 . Wheel . | . . . Hover . | . . . Flight 1 | . . 1 Utility 11 | 1 9 1 Device 2 | . 2 . Storage 6 | 1 5 . Processor 3 | . 2 1 Hackware . | . . . Protection . | . . . Artifact . | . . . Weapon 8 | 3 2 3 Energy Gun 2 | 1 . 1 Energy Cannon . | . . . Ballistic Gun 5 | 2 2 1 Ballistic Cannon . | . . . Launcher 1 | . . 1 Special Weapon . | . . . Impact Weapon . | . . . Slashing Weapon . | . . . Piercing Weapon . | . . . Special Melee Weapon . | . . . Unidentified Prototypes . | . . . Parts Lost 6 | . 1 5 Power . | . . . Propulsion 1 | . . 1 Utility 1 | . 1 . Weapon 4 | . . 4 Highest Loss Streak 5 | . 1 5 To Critical Strikes . | . . . Average Slot Usage (%) 91 | . 95 77 Engine 7 | . 6 9 Core 5 | . 7 . Leg 25 | . 27 18 Device 1 | . 2 . Storage 8 | . 10 . Processor 13 | . 11 22 Energy Gun 1 | . . 9 Ballistic Gun 25 | . 28 16 Naked Turns . | . . . Heaviest Build 18 | 10 18 14 Greatest Support 20 | 20 20 20 Greatest Overweight (x) 3 | 2 3 . Average Overweight (x) . | . . . Largest Inventory Capacity 25 | 8 25 5 Average Capacity 8 | 7 8 5 Most Carried 10 | 1 10 5 Average Carried 6 | . 6 4 Final Capacity 8 | 8 5 5 Final Carried 5 | 1 5 4 Class Distribution -------------------- 88% | Mutant 11% | Gunner Dominant Class ---------------- Mutant | -10/Materials Gunner | -9/Materials Resources | -11 -10 -9 ----------- Run | Yrd Mat Mat Matter Collected 578 | 228 350 . Remotely . | . . . Salvage Created 455 | . 381 74 Parts 33 | . 23 10 Haulers Intercepted 1 | . 1 . Recyclers Shooed . | . . . Parts Field Recycled . | . . . Retrieved Matter . | . . . Parts Self-Destructed . | . . . Prevented . | . . . Kills | -11 -10 -9 ------- Run | Yrd Mat Mat Combat Hostiles Destroyed 10 | . 6 4 Guns 8 | . 6 2 AOE 2 | . . 2 Classes Destroyed 5 | . 3 2 Worker 1 | . . 1 Hauler 1 | . 1 . Watcher 3 | . 3 . Swarmer 2 | . . 2 Grunt 8 | . 6 2 Best Kill Streak 5 | . 3 5 Combat Bots Only 4 | . 2 4 Max Kills in Single Turn 2 | . 2 1 Gunslinging . | . . . Exploded 1 | . . 1 Melee . | . . . Uniques/NPCs Destroyed . | . . . Combat | -11 -10 -9 -------- Run | Yrd Mat Mat Hostile Shots Fired 108 | . 37 71 Missed 28 | . 7 21 Damage Taken 940 | . 427 513 Core 265 | . 115 150 Absorbed by Shields . | . . . Regen/Repaired (Parts) 57 | . 57 . Core Remaining (%) 77 | 100 54 . Volleys Fired 55 | . 45 10 Largest 2 | . 2 2 Hottest 60 | . 40 60 Shots Fired 101 | . 90 11 Gun 97 | . 90 7 Cannon . | . . . Launcher 4 | . . 4 Special . | . . . Kinetic 91 | . 90 1 Thermal 6 | . . 6 Explosive 4 | . . 4 Electromagnetic . | . . . Robot Hit Streak 5 | . 5 4 Robot Miss Streak 4 | . 4 1 Penetration Max . | . . . Secondary Targets . | . . . Shots Hit Robots 57 | . 50 7 Core Hits 41 | . 29 12 Critical Kills . | . . . Critical Parts Destroyed 1 | . 1 . Critical Strikes 1 | . 1 . Destroy 1 | . 1 . Melee Attacks . | . . . Impact . | . . . Slashing . | . . . Piercing . | . . . Sneak Attacks . | . . . Combat Hostiles . | . . . Follow-up Attacks . | . . . Damage Inflicted 857 | . 440 417 Guns 500 | . 436 64 Cannons . | . . . Explosions 353 | . . 353 Melee . | . . . Ramming 4 | . 4 . Kinetic 444 | . 436 8 Thermal 56 | . . 56 Explosive 278 | . . 278 Electromagnetic 75 | . . 75 Impact . | . . . Slashing . | . . . Piercing . | . . . Highest Corruption . | . . . Average Corruption . | . . . Corruption Purged . | . . . Corruption Blocked . | . . . Overload Shots . | . . . Overflow Damage . | . . . Projectiles . | . . . Explosions . | . . . Melee . | . . . Knockbacks . | . . . Impact . | . . . Kinetic . | . . . Secondary . | . . . Self-Inflicted Damage 16 | . . 16 Shots 1 | . . 1 Rammed . | . . . Targets Rammed 1 | . 1 . Kicked 1 | . 1 . Crushed . | . . . Highest Temperature 31 | . 30 31 Average Temperature 9 | . 9 10 Received Heat Transfer 345 | . 219 126 Siege Activations . | . . . Robots Corrupted . | . . . Combat Hostiles . | . . . Parts Fried . | . . . Impact Corruptions . | . . . Robots Melted . | . . . Combat Hostiles . | . . . Parts Melted . | . . . Heat Transferred 125 | . . 125 Parts Sabotaged . | . . . Parts Stolen . | . . . Parts Stripped . | . . . Power Chain Reactions . | . . . Alert | -11 -10 -9 ------- Run | Yrd Mat Mat Peak Influence 266 | . 133 266 Initial 11 | . . 11 Average 52 | . 54 62 Maximum Alert Level 1 | . . 1 Low Security (%) 98 | 100 100 91 Level 1 1 | . . 8 Level 2 . | . . . Level 3 . | . . . Level 4 . | . . . Level 5 . | . . . High Security . | . . . Max Security . | . . . Squads Dispatched 2 | . 1 1 Investigation . | . . . Extermination . | . . . Reinforcement 2 | . 1 1 Assault . | . . . Garrison . | . . . Intercept . | . . . Searches Triggered . | . . . Construction Impeded . | . . . Haulers Reinforced . | . . . Active Scanning Responses . | . . . Cargo Convoy Interrupts . | . . . Stealth | -11 -10 -9 --------- Run | Yrd Mat Mat Distress Signals 4 | . 2 2 Communications Jammed . | . . . Distress Signals . | . . . Times Spotted 34 | . 16 18 Peak Tracking Total 12 | . 4 12 Tactical Retreats 2 | . . 2 Traps | -11 -10 -9 ------- Run | Yrd Mat Mat Traps Triggered 5 | . 5 . Indirectly . | . . . Trap Hack Attempts . | . . . Triggered . | . . . Disarmed . | . . . Reprogrammed . | . . . Reused . | . . . Traps Extracted . | . . . Installed . | . . . Triggered . | . . . Machines | -11 -10 -9 ---------- Run | Yrd Mat Mat Machines Disabled 2 | . . 2 Max in Single Turn 1 | . . 1 Machines Repaired . | . . . Machines Dismantled . | . . . Machines Sabotaged . | . . . Overloaded Fab Kills . | . . . Hacking | -11 -10 -9 --------- Run | Yrd Mat Mat Machines Accessed 7 | . 5 2 Terminals 4 | . 2 2 Fabricators . | . . . Repair Stations 1 | . 1 . Recycling Units 2 | . 2 . Scanalyzers . | . . . Garrison Access . | . . . Total Hacks 20 | . 15 5 Successful 12 | . 9 3 Failed 8 | . 6 2 Catastrophic . | . . . Database Lockouts . | . . . Manual . | . . . Terminals 11 | . 6 5 Fabricators . | . . . Repair Stations 4 | . 4 . Recycling Units 5 | . 5 . Scanalyzers . | . . . Garrison Access . | . . . Terminal Hacks 7 | . 4 3 Prototype ID Bank 2 | . 1 1 Locate Traps 1 | . 1 . Investigation Status 1 | . . 1 Hauler Manifests 1 | . . 1 Zone Layout 2 | . 2 . Fabricator Hacks . | . . . Repair Station Hacks 2 | . 2 . Scan Component 1 | . 1 . Repair 1 | . 1 . Recycling Unit Hacks 3 | . 3 . Report Inventory 2 | . 2 . Retrieve Components 1 | . 1 . Scanalyzer . | . . . Garrison Access Hacks . | . . . Unauthorized Hacks . | . . . Terminals . | . . . Fabricators . | . . . Repair Stations . | . . . Recycling Units . | . . . Scanalyzers . | . . . Garrison Access . | . . . Data Cores Recovered . | . . . Used . | . . . Hacking Detections 4 | . 3 1 Full Trace Events 1 | . 1 . Feedback Events . | . . . Feedback Blocked . | . . . Robot Schematics Acquired . | . . . Robots Built . | . . . Authchips . | . . . Time . | . . . Total Robot Build Rating . | . . . Part Schematics Acquired . | . . . Parts Built . | . . . Authchips . | . . . Time . | . . . Total Part Build Rating . | . . . Parts Repaired 1 | . 1 . Time 26 | . 26 . Parts Recycled . | . . . Recycled Matter . | . . . Retrieved Matter . | . . . Retrieved Components 3 | . 3 . Parts Scanalyzed . | . . . Part Schematics Acquired . | . . . Parts Damaged . | . . . Bothacking | -11 -10 -9 ------------ Run | Yrd Mat Mat Used RIF Installer . | . . . Robots Hacked . | . . . Non-combat . | . . . Combat . | . . . Robot Hacks Applied . | . . . Relay Couplers Released . | . . . Fabnet Peak Effective % . | . . . Robots Rewired . | . . . Allies Hacked . | . . . Hacks Repelled . | . . . Allies | -11 -10 -9 -------- Run | Yrd Mat Mat Total Allies . | . . . Largest Group . | . . . Highest-Rated Group . | . . . Highest-Rated Ally . | . . . Total Orders . | . . . Ally Attacks . | . . . Total Damage . | . . . Kills . | . . . Allies Corrupted . | . . . Allies Melted . | . . . Intel | -11 -10 -9 ------- Run | Yrd Mat Mat Robot Analysis Total . | . . . Derelict Logs Recovered . | . . . Drone Launches . | . . . Drone Recoveries . | . . . Exploration | -11 -10 -9 ------------- Run | Yrd Mat Mat Turns Passed 1244 | 68 956 220 Spaces Moved 813 | 47 560 206 Core 12 | 11 1 . Treads . | . . . Legs 725 | 36 559 130 Wheels . | . . . Hover . | . . . Flight 76 | . . 76 Fastest Speed 40 | 50 120 40 Average Speed 112 | 121 120 90 Slowest Speed 200 | 150 200 120 Overloaded Moves . | . . . Propulsion Burnouts . | . . . Robots Hopped 1 | . . 1 Cave-ins Triggered . | . . . Exploration Rate (%) 38 | 4 88 23 Regions Visited 2 Branch Regions . Pre-discovered Areas . | . . . Known Exits Taken . | . . . Unknown Exits Taken 2 | 1 1 . Scrap Searched . | . . . Spaces Dug . | . . . Terrain Destroyed 9 | . . 9 Melee . | . . . Projectile . | . . . AOE 9 | . . 9 Terrain Rammed . | . . . Walls Destroyed . | . . . Machines Disabled . | . . . Actions | -11 -10 -9 --------- Run | Yrd Mat Mat Total 1052 | 55 769 228 Wait 109 | . 108 1 Move 809 | 46 559 204 Hop 1 | . . 1 Pick Up 19 | 1 16 2 Fast Attach 19 | 7 11 1 Attach 4 | . 1 3 Detach 2 | . 2 . Swap 13 | . 11 2 Drop 20 | 1 15 4 Fire 55 | . 45 10 Melee . | . . . Ram . | . . . Kick 1 | . 1 . Crush . | . . . Escape Stasis . | . . . Rewire . | . . . Trap . | . . . Miscellaneous . | . . . Route ------- -11/Scrapyard -10/Materials (discovered 4 exits: *Mat x2 / [*Min x2]) -9/Materials (discovered 1 exit: [*Sto]) History --------- Turn | Location | Event 14 | -11/Scrapyard | Discovered new exit (range 15) 69 | -11/Scrapyard | Entered Materials 134 | -10/Materials | Discovered new exit (range 16) 303 | -10/Materials | Build established: Mutant 340 | -10/Materials | Repaired Aluminum Leg 597 | -10/Materials | Discovered new exit (range 7) 751 | -10/Materials | Discovered new exit (range 18) 900 | -10/Materials | Discovered new exit (range 13) 1025 | -10/Materials | Entered another Materials area 1025 | -9/Materials | Evolved 2 slots: Utility x1, Weapon x1 1095 | -9/Materials | Discovered new exit (range 17) 1243 | -9/Materials | Lost 5 parts (1n4w) 1245 | -9/Materials | Self-destructed Last Messages --------------- 01211_ U-05 Engineer lays Concrete. 01212_ K-01 Serf collects debris. 01212_ Dropped Aluminum Leg. 01212_ U-05 Engineer lays Concrete. 01212_ Sml. Laser destroyed. 01213_ U-05 Engineer lays Concrete. 01213_ R-06 Scavenger collects Lgt. Assault Rifle. 01214_ K-01 Serf collects debris. 01214_ U-05 Engineer lays Concrete. 01214_ Dropped Hvy. Ion Engine. 01214_ U-05 Engineer lays Concrete. 01215_ The unstable cave ceiling collapses. 01215_ U-05 Engineer lays Concrete. 01216_ K-01 Serf collects debris. 01217_ U-05 Engineer lays Concrete. 01235_ O-16 Technician: "IFF HANDSHAKE FAILED. SECURING TERMINAL." 01240_ ALERT: Hostiles spotted, dispatching reinforcements to Terminal M006. Map ----- +----------------------------------------------------+ | | | | | | | | | | | | | | | | | | | | | | | | | | | | | | | | | | | | | | | | | ?????????????????????????????????????????????????? | | ?????????????########????????????????????????????? | | ?????????????# #???????????????????????????? | | ?????????????# #???????????????????????????? | | ?????????????# """ ##############??????????????? | | ?????????????# """"" # @ g g